fUSD/lending_fUSD_20250407
["ID","MTS","AMOUNT","RATE_DAILY","PERIOD"]
[357342818,1744008710100,-592.53,0.00499999,120]
[357342819,1744008710110,-567.96,0.00499999,120]
[357342820,1744008710120,-567.96,0.00499999,120]
[357342821,1744008710130,-567.96,0.00499999,120]
[357342822,1744008710140,-567.96,0.00499999,120]
[357342823,1744008710150,-568.03,0.00499999,120]
[357342824,1744008710160,-575.23,0.00499999,120]
[357342825,1744008710170,-575.23,0.00499999,120]
[357342826,1744008710181,-575.23,0.00499999,120]
[357342827,1744008710190,-575.23,0.00499999,120]
[357342828,1744008710200,-575.37786402,0.00499999,120]
[357342829,1744008710209,-6068.57,0.00499999,120]
[357342830,1744008710220,-6068.57,0.00499999,120]
[357342831,1744008710229,-6068.57,0.00499999,120]
[357342832,1744008710239,-6068.57,0.00499999,120]
[357342833,1744008710248,-6068.57,0.00499999,120]
[357342834,1744008710258,-6068.7847,0.00499999,120]
[357342835,1744008710273,-500.0,0.00499999,120]
[357342836,1744008710283,-500.0,0.00499999,120]
[357342837,1744008710292,-500.0,0.00499999,120]
[357342838,1744008710302,-500.0,0.00499999,120]
[357342839,1744008710311,-461.52,0.00499999,120]
[357342840,1744008710321,-659.21,0.00499999,120]
[357342841,1744008710331,-659.21,0.00499999,120]
[357342842,1744008710341,-659.21,0.00499999,120]
[357342843,1744008710350,-659.21,0.00499999,120]
[357342844,1744008710360,-659.21,0.00499999,120]
[357342845,1744008710370,-659.31289964,0.00499999,120]
[357342846,1744008710380,-193.04698142,0.00499999,120]
[357342847,1744008710389,-500.0,0.00499999,120]
[357342848,1744008710398,-500.0,0.00499999,120]
[357342849,1744008710407,-500.0,0.00499999,120]
[357342850,1744008710417,-500.0,0.00499999,120]
[357342851,1744008710427,-257.92412767,0.00499999,120]
[357342852,1744008710437,-537.59,0.00499999,120]
[357342853,1744008710446,-537.59,0.00499999,120]
[357342854,1744008710456,-537.59,0.00499999,120]
[357342855,1744008710465,-537.59,0.00499999,120]
[357342856,1744008710475,-537.66767821,0.00499999,120]
[357342857,1744008710486,-12842.25,0.005,120]
[357342858,1744008710496,-435.61932681,0.005,120]
[357342859,1744008710506,-356909.87714979,0.005,120]
[357342860,1744008710779,-500.0,0.00136986,120]
[357342861,1744008710788,-151.0,0.00139726,120]
[357342862,1744008710798,-43647.17011175,0.005,120]
[357342863,1744008710810,-306.76905976,0.005,120]
[357342864,1744008710821,-1003.42908,0.005,120]
[357342865,1744008710836,-84182.68808418,0.005,120]
[357342866,1744008710852,-500.0,0.00136986,120]
[357342867,1744008710862,-5052.77516672,0.005,120]
[357342868,1744008710874,-1723.02766955,0.005,120]
[357342869,1744008710886,-273.67977239,0.005,120]
[357342870,1744008710898,-3915.24986408,0.005,120]
[357342871,1744008710910,-750.0,0.005,120]
[357342872,1744008712186,1219.0,0.00043396,31]
[357342873,1744008712292,1219.0,0.00043396,31]
[357342874,1744008712355,-52224.5777023,0.000488,120]
[357342875,1744008712391,-935.78007312,0.00097889,120]
[357342876,1744008712425,-978.10134372,0.00134246,120]
[357342877,1744008712459,-35734.07,0.00134838,120]
[357342878,1744008712492,-3700.0,0.00136,120]
[357342879,1744008712526,-184.61591397,0.00136886,30]
[357342880,1744008712560,-2437.62951062,0.00136886,120]
[357342881,1744008712592,-500.0,0.00136986,120]
[357342882,1744008712623,-500.0,0.00136986,120]
[357342883,1744008712655,-537.59,0.00136986,120]
[357342884,1744008712688,-500.0,0.00136986,120]
[357342885,1744008712721,-500.0,0.00136986,120]
[357342886,1744008712791,-500.0,0.00136986,120]
[357342887,1744008712825,-500.0,0.00136986,120]
[357342888,1744008712858,-500.0,0.00136986,120]
[357342889,1744008712891,-500.0,0.00136986,120]
[357342890,1744008712923,-644.83,0.00136986,120]
[357342891,1744008712957,-500.0,0.00136986,120]
[357342892,1744008712991,-500.0,0.00136986,120]
[357342893,1744008713028,-288.88089163,0.00136986,120]
[357342894,1744008713062,-500.0,0.00136986,120]
[357342895,1744008713098,-391.76,0.00136986,120]
[357342896,1744008713131,-500.0,0.00136986,120]
[357342897,1744008713166,-500.0,0.00136986,120]
[357342898,1744008713199,-551.05,0.00136986,120]
[357342899,1744008713231,-500.0,0.00136986,120]
[357342900,1744008713262,-500.0,0.00136986,120]
[357342901,1744008713300,-500.0,0.00136986,120]
[357342902,1744008713335,-500.0,0.00136986,120]
[357342903,1744008713368,-500.0,0.00136986,120]
[357342904,1744008713400,-603.59,0.00136986,120]
[357342905,1744008713434,-500.0,0.00136986,120]
[357342906,1744008713467,-566.67,0.00136986,120]
[357342907,1744008713500,-500.0,0.00136986,120]
[357342908,1744008713538,-157.66478832,0.00136986,120]
[357342909,1744008713571,-500.0,0.00136986,120]
[357342910,1744008713603,-299.535,0.00136986,120]
[357342911,1744008713635,-500.0,0.00136986,120]
[357342912,1744008713669,-500.0,0.00136986,120]
[357342913,1744008713701,-500.0,0.00136986,120]
[357342914,1744008713734,-388.4273531,0.00136986,120]
[357342915,1744008713771,-500.0,0.00136986,120]
[357342916,1744008713803,-500.0,0.00136986,120]
[357342917,1744008713836,-500.0,0.00136986,120]
[357342918,1744008713868,-500.0,0.00136986,120]
[357342919,1744008713899,-500.0,0.00136986,120]
[357342920,1744008713930,-500.0,0.00136986,120]
[357342921,1744008713961,-500.0,0.00136986,120]
[357342922,1744008713992,-500.0,0.00136986,120]
[357342923,1744008714026,-500.0,0.00136986,120]
[357342924,1744008714057,-528.50589228,0.00136986,120]
[357342925,1744008714089,-500.0,0.00136986,120]
[357342926,1744008714125,-500.0,0.00136986,120]
[357342927,1744008714158,-500.0,0.00136986,120]
[357342928,1744008714192,-500.0,0.00136986,120]
[357342929,1744008714317,-500.0,0.00136986,120]
[357342930,1744008714352,-500.0,0.00136986,120]
[357342931,1744008714387,-500.0,0.00136986,120]
[357342932,1744008714423,-500.0,0.00136986,120]
[357342933,1744008714458,-500.0,0.00136986,120]
[357342934,1744008714493,-500.0,0.00136986,120]
[357342935,1744008714529,-300.16,0.00139614,120]
[357342936,1744008714563,-151.0,0.00139726,120]
[357342937,1744008714595,-151.0,0.00139726,120]
[357342938,1744008714627,-151.0,0.00139726,120]
[357342939,1744008714660,-151.0,0.00139726,120]
[357342940,1744008714693,-151.0,0.00139726,120]
[357342941,1744008714726,-152.680304,0.00139726,120]
[357342942,1744008714759,-151.0,0.00139726,120]
[357342943,1744008714795,-151.0,0.00139726,120]
[357342944,1744008714829,-151.0,0.00139726,120]
[357342945,1744008714863,-151.0,0.00139726,120]
[357342946,1744008714895,-151.0,0.00139726,120]
[357342947,1744008714927,-151.0,0.00139726,120]
[357342948,1744008714959,-151.0,0.00139726,120]
[357342949,1744008714992,-151.0,0.00139726,120]
[357342950,1744008715028,-151.0,0.00139726,120]
[357342951,1744008715060,-151.0,0.00139726,120]
[357342952,1744008715092,-151.0,0.00139726,120]
[357342953,1744008715125,-270.772729,0.00139726,120]
[357342954,1744008715158,-1422.522181,0.00139726,120]
[357342955,1744008715194,-1422.522181,0.00139726,120]
[357342956,1744008715228,-1422.522181,0.00139726,120]
[357342957,1744008715260,-1422.522181,0.00139726,120]
[357342958,1744008715295,-1422.522181,0.00139726,120]
[357342959,1744008715329,-1422.522181,0.00139726,120]
[357342960,1744008715364,-1422.522181,0.00139726,120]
[357342961,1744008715397,-151.0,0.00139726,120]
[357342962,1744008715432,-1422.522181,0.00139726,120]
[357342963,1744008715464,-151.0,0.00139726,120]
[357342964,1744008715498,-1422.522181,0.00139726,120]
[357342965,1744008715536,-1422.522181,0.00139726,120]
[357342966,1744008715573,-1422.522181,0.00139726,120]
[357342967,1744008715607,-1422.522181,0.00139726,120]
[357342968,1744008715813,-1422.522181,0.00139726,120]
[357342969,1744008715850,-1422.522181,0.00139726,120]
[357342970,1744008715883,-1422.522181,0.00139726,120]
[357342971,1744008715916,-1422.522181,0.00139726,120]
[357342972,1744008715949,-1422.522181,0.00139726,120]
[357342973,1744008715982,-1422.522181,0.00139726,120]
[357342974,1744008716013,-1422.522181,0.00139726,120]
[357342975,1744008716048,-1422.522189,0.00139726,120]
[357342976,1744008716087,500.0,0.00136986,120]
[357342977,1744008716161,1221.0,0.00043396,31]
[357342978,1744008716213,19766.73333651,0.00171683,120]
[357342979,1744008716254,500.0,0.00136986,120]
[357342980,1744008716307,500.0,0.00136986,120]
[357342981,1744008716378,1219.0,0.00043396,31]
[357342982,1744008716427,500.0,0.00136986,120]
[357342983,1744008716495,500.0,0.00136986,120]
[357342984,1744008716537,500.0,0.00136986,120]
[357342985,1744008716595,500.0,0.00136986,120]
[357342986,1744008716649,500.0,0.00136986,120]
[357342987,1744008716687,500.0,0.0014912,120]
[357342988,1744008716733,500.0,0.00190515,120]
[357342989,1744008716771,1116.86128588,0.00136985,120]
[357342990,1744008716808,500.0,0.00136986,120]
[357342991,1744008716846,500.0,0.00199996,120]
[357342992,1744008716899,500.0,0.00136986,120]
[357342993,1744008717001,500.0,0.00136986,120]
[357342994,1744008717128,240.70161286,0.00136986,120]
[357342995,1744008717171,500.0,0.002,30]
[357342996,1744008717216,500.0,0.00136986,120]
[357342997,1744008717263,162.85133309,0.000548,120]
[357342998,1744008717307,542.1723215,0.002,30]
[357342999,1744008717345,1493.6131,0.00046688,30]
[357343000,1744008717391,1493.6131,0.00047088,30]
[357343001,1744008717432,500.0,0.00053424,30]
[357343002,1744008717471,500.0,0.00136986,120]
[357343003,1744008717529,500.0,0.00053972,32]
[357343004,1744008717605,500.0,0.0005452,34]
[357343005,1744008717658,1493.6131,0.00046488,30]
[357343006,1744008717721,500.0,0.00136986,120]
[357343007,1744008717781,500.0,0.00136986,120]
[357343008,1744008717838,508.26879907,0.00055068,36]
[357343009,1744008717900,1493.6131,0.00047288,30]
[357343010,1744008717965,500.0,0.00136986,120]
[357343011,1744008718107,500.0,0.00136986,120]
[357343012,1744008718158,1493.6131,0.00046288,30]
[357343013,1744008718226,500.0,0.00136986,120]
[357343014,1744008718306,598.0,0.002,30]
[357343015,1744008718406,500.0,0.00136986,120]
[357343016,1744008718455,598.0,0.002,30]
[357343017,1744008718506,1493.6131,0.00047488,30]
[357343018,1744008718547,500.0,0.00136986,120]
[357343019,1744008718598,500.0,0.00136986,120]
[357343020,1744008718643,508.86409943,0.00136986,120]
[357343021,1744008718681,598.0,0.002,30]
[357343022,1744008718725,500.0,0.00136986,120]
[357343023,1744008718763,598.0,0.002,30]
[357343024,1744008718804,1493.6131,0.00046088,30]
[357343025,1744008718845,414.29,0.00136986,120]
[357343026,1744008718883,598.0,0.002,30]
[357343027,1744008718925,598.0,0.002,30]
[357343028,1744008718963,1493.6131,0.00047688,30]
[357343029,1744008719177,-165.95701,0.00042488,7]
[357343030,1744008719214,-165.95701,0.00042688,7]
[357343031,1744008719248,-189.0445,0.000428,2]
[357343032,1744008719287,-165.95701,0.00042888,7]
[357343033,1744008719324,-165.95701,0.00043088,7]
[357343034,1744008719359,-165.95701,0.00043288,7]
[357343035,1744008719395,-165.95701,0.00043488,7]
[357343036,1744008719431,-165.95701,0.00043688,7]
[357343037,1744008719466,-165.95701,0.00044088,7]
[357343038,1744008719500,-165.95701,0.00044288,7]
[357343039,1744008719536,-165.95701,0.00044488,7]
[357343040,1744008720062,-165.95701,0.00044688,7]
[357343041,1744008720106,-165.95701,0.00044888,7]
[357343042,1744008720141,-165.95701,0.00045088,7]
[357343043,1744008720178,-1493.6131,0.00045888,30]
[357343044,1744008720212,-250.0,0.00054175,2]
[357343045,1744008720245,-621.73832356,0.00069898,2]
[357343046,1744008720283,-1527.55,0.00136986,7]
[357343047,1744008720318,-1527.55,0.00136986,7]
[357343048,1744008720353,-1527.55,0.00136986,7]
[357343049,1744008720388,-1527.55,0.00136986,7]
[357343050,1744008720422,-1527.55,0.00136986,7]
[357343051,1744008720458,-1527.55,0.00136986,7]
[357343052,1744008720492,-1527.55,0.00136986,7]
[357343053,1744008720531,-1527.55,0.00136986,7]
[357343054,1744008720565,-500.0,0.00136986,5]
[357343055,1744008720613,-500.0,0.00136986,5]
[357343056,1744008720652,-500.0,0.00136986,120]
[357343057,1744008720689,-500.0,0.00136986,100]
[357343058,1744008720725,-500.0,0.00136986,100]
[357343059,1744008720760,-500.0,0.00136986,100]
[357343060,1744008720806,-1237.44,0.00136986,120]
[357343061,1744008720841,-500.0,0.00136986,100]
[357343062,1744008720876,-1237.44,0.00136986,120]
[357343063,1744008720912,-1237.44,0.00136986,120]
[357343064,1744008720946,-500.0,0.00136986,100]
[357343065,1744008720981,-1237.44,0.00136986,120]
[357343066,1744008721016,-500.0,0.00136986,100]
[357343067,1744008721056,-1237.44,0.00136986,120]
[357343068,1744008721092,-1527.55,0.00139725,7]
[357343069,1744008721129,-1527.55,0.00149996,7]
[357343070,1744008721171,-1527.55,0.00190516,7]
[357343071,1744008721206,-598.0,0.002,30]
[357343072,1744008721240,-598.0,0.002,30]
[357343073,1744008721277,-598.0,0.002,30]
[357343074,1744008721312,-598.0,0.002,30]
[357343075,1744008721346,-598.0,0.002,30]
[357343076,1744008721381,-598.0,0.002,30]
[357343077,1744008721416,-598.0,0.002,30]
[357343078,1744008721451,-598.0,0.002,30]
[357343079,1744008721485,-598.0,0.002,30]
[357343080,1744008721519,-598.0,0.002,30]
[357343081,1744008721555,-598.0,0.002,30]
[357343082,1744008721733,-598.0,0.002,30]
[357343083,1744008721768,-598.0,0.002,30]
[357343084,1744008721808,-614.0,0.002,30]
[357343085,1744008721902,500.0,0.00136986,100]
[357343086,1744008721946,1237.44,0.00136986,120]
[357343087,1744008721987,500.0,0.00136986,100]
[357343088,1744008722035,1237.44,0.00136986,120]
[357343089,1744008722074,500.0,0.00136986,100]
[357343090,1744008722118,1237.44,0.00136986,120]
[357343091,1744008722158,500.0,0.00136986,100]
[357343092,1744008722197,1237.44,0.00139725,120]
[357343093,1744008722236,500.0,0.00136986,100]
[357343094,1744008722278,165.95701,0.00045288,7]
[357343095,1744008722318,1237.44,0.00149996,120]
[357343096,1744008722358,500.0,0.00136986,120]
[357343097,1744008722396,500.0,0.00136986,100]
[357343098,1744008722434,1493.6131,0.00047888,30]
[357343099,1744008722473,1237.44,0.00190516,120]
[357343100,1744008722512,500.0,0.00136986,120]
[357343101,1744008722554,500.0,0.0014912,100]
[357343102,1744008722599,150.0,0.00136986,120]
[357343103,1744008722638,157.30524478,0.00190515,100]
[357343104,1744008722675,165.95701,0.00042288,7]
[357343105,1744008722718,1493.6131,0.00045688,30]
[357343106,1744008722764,165.95701,0.00045488,7]
[357343107,1744008722808,500.0,0.00136986,120]
[357343108,1744008722850,1493.6131,0.00048088,30]
[357343109,1744008722896,165.95701,0.00042088,7]
[357343110,1744008722933,2831.41552197,0.001298,120]
[357343111,1744008722969,500.0,0.00136986,120]
[357343112,1744008723010,1493.6131,0.00045488,30]
[357343113,1744008723069,165.95701,0.00045688,7]
[357343114,1744008723142,1493.6131,0.00048288,30]
[357343115,1744008723186,165.95701,0.00041888,7]
[357343116,1744008723224,645.22791666,0.00136986,120]
[357343117,1744008723268,1493.6131,0.00045288,30]
[357343118,1744008723330,165.95701,0.00045888,7]
[357343119,1744008723368,1493.6131,0.00048488,30]
[357343120,1744008723523,500.0,0.00136986,120]
[357343121,1744008723568,165.95701,0.00041688,7]
[357343122,1744008723610,500.0,0.00136986,120]
[357343124,1744008757087,-165.95701,0.00040888,7]
[357343125,1744008757124,-250.0,0.00040988,2]
[357343126,1744008757157,-165.95701,0.00041088,7]
[357343127,1744008757191,-165.95701,0.00041288,7]
[357343128,1744008757223,-250.0,0.00041288,2]
[357343129,1744008757258,-165.95701,0.00041488,7]
[357343130,1744008757292,-264.35161621,0.00041999,31]
[357343131,1744008757325,-460.85,0.00042,120]
[357343132,1744008757357,-15730.4298,0.000428,2]
[357343133,1744008757390,-1493.6131,0.00043888,30]
[357343134,1744008757422,-1493.6131,0.00044088,30]
[357343135,1744008757454,-1493.6131,0.00044288,30]
[357343136,1744008757487,-1493.6131,0.00044488,30]
[357343137,1744008757519,-550.0,0.00044687,5]
[357343138,1744008757552,-1493.6131,0.00044688,30]
[357343139,1744008757584,-1493.6131,0.00044888,30]
[357343140,1744008757617,-250.0,0.00044977,2]
[357343141,1744008757650,-453.0,0.00045,120]
[357343142,1744008757682,-1493.6131,0.00045088,30]
[357343143,1744008757713,-165.95701,0.00046088,7]
[357343144,1744008757745,-165.95701,0.00046288,7]
[357343145,1744008757777,-165.95701,0.00046488,7]
[357343146,1744008757812,-165.95701,0.00046688,7]
[357343147,1744008757844,-165.95701,0.00046888,7]
[357343148,1744008757875,-300.86513427,0.00048,120]
[357343149,1744008757908,-1493.6131,0.00048688,30]
[357343150,1744008757940,-1493.6131,0.00048888,30]
[357343151,1744008757975,-1493.6131,0.00049088,30]
[357343152,1744008758008,-1493.6131,0.00049288,30]
[357343153,1744008758044,-384.87978408,0.00049313,120]
[357343154,1744008758209,-500.0,0.00049313,120]
[357343155,1744008758243,-443.00003377,0.00049313,120]
[357343156,1744008758278,-500.0,0.00049313,120]
[357343157,1744008758315,-500.0,0.00049313,31]
[357343158,1744008758350,-500.0,0.00049313,31]
[357343159,1744008758386,-500.0,0.00049313,120]
[357343160,1744008758420,-500.0,0.00049313,120]
[357343161,1744008758454,-500.0,0.00049313,120]
[357343162,1744008758489,-209.49484859,0.00049313,31]
[357343163,1744008758524,-500.0,0.00049313,120]
[357343164,1744008758560,-500.0,0.00049313,120]
[357343165,1744008758594,-500.0,0.00049313,120]
[357343166,1744008758630,-500.0,0.00049313,120]
[357343167,1744008758665,-500.0,0.00049313,120]
[357343168,1744008758701,-500.0,0.00049313,120]
[357343169,1744008758736,-500.0,0.00049313,120]
[357343170,1744008758773,-500.0,0.00049313,120]
[357343171,1744008758815,-500.0,0.00049313,120]
[357343172,1744008758850,-500.0,0.00049313,120]
[357343173,1744008758885,-500.0,0.00049313,120]
[357343174,1744008758920,-500.0,0.00049313,120]
[357343175,1744008758954,-500.0,0.00049313,120]
[357343176,1744008758988,-500.0,0.00049313,120]
[357343177,1744008759022,-500.0,0.00049313,120]
[357343178,1744008759059,-500.0,0.00049313,120]
[357343179,1744008759094,-500.0,0.00049313,120]
[357343180,1744008759132,-500.0,0.00049313,120]
[357343181,1744008759166,-500.0,0.00049313,120]
[357343182,1744008759203,-272.29552163,0.00049313,120]
[357343183,1744008759239,-500.0,0.00049313,120]
[357343184,1744008759274,-500.0,0.00049313,120]
[357343185,1744008759317,-500.0,0.00049313,120]
[357343186,1744008759352,-500.0,0.00049313,120]
[357343187,1744008759388,-500.0,0.00049313,120]
[357343188,1744008759425,-500.0,0.00049313,120]
[357343189,1744008759463,-500.0,0.00049313,120]
[357343190,1744008759499,-500.0,0.00049313,120]
[357343191,1744008759534,-500.0,0.00049313,120]
[357343192,1744008759575,-500.0,0.00049313,120]
[357343193,1744008759611,-500.0,0.00049313,120]
[357343194,1744008759647,-500.0,0.00049313,120]
[357343195,1744008759681,-386.86763152,0.00049313,120]
[357343196,1744008759719,-500.0,0.00049313,120]
[357343197,1744008759862,-2000.0,0.00049315,120]
[357343198,1744008759897,-500.0,0.00049315,120]
[357343199,1744008759931,-342.85276907,0.00049315,120]
[357343200,1744008759969,-500.0,0.00049315,120]
[357343201,1744008760007,-500.0,0.00049315,120]
[357343202,1744008760044,-500.0,0.00049315,120]
[357343203,1744008760082,-500.0,0.00049315,120]
[357343204,1744008760121,-500.0,0.00049315,120]
[357343205,1744008760154,-1493.6131,0.00049488,30]
[357343206,1744008760190,-2000.0,0.00049589,120]
[357343207,1744008760225,-1493.6131,0.00049688,30]
[357343208,1744008760261,-425.17509472,0.00049863,120]
[357343209,1744008760299,-1493.6131,0.00049888,30]
[357343210,1744008760333,-179.09625,0.00054741,120]
[357343211,1744008760368,-5000.0,0.00069677,120]
[357343212,1744008760401,-500.0,0.00080772,120]
[357343213,1744008760435,-836.13,0.00088049,30]
[357343214,1744008760470,-500.0,0.00088342,120]
[357343215,1744008760502,-500.0,0.00095424,120]
[357343216,1744008760536,-2000.0,0.001,25]
[357343217,1744008760571,-836.13,0.00123269,30]
[357343218,1744008760603,-169.7388516,0.00136886,28]
[357343219,1744008760637,-165.0,0.00136986,120]
[357343220,1744008760669,-500.0,0.00136986,120]
[357343221,1744008760702,-500.0,0.00136986,120]
[357343222,1744008760735,-500.0,0.00136986,120]
[357343223,1744008760768,-172.65,0.00136986,120]
[357343224,1744008760805,-500.0,0.00136986,120]
[357343225,1744008760839,-500.0,0.00136986,120]
[357343226,1744008760873,-500.0,0.00136986,120]
[357343227,1744008760907,-165.8073661,0.00136986,120]
[357343228,1744008760942,-500.0,0.00136986,120]
[357343229,1744008760975,-500.0,0.00136986,120]
[357343230,1744008761007,-500.0,0.00136986,120]
[357343231,1744008761039,-500.0,0.00136986,120]
[357343232,1744008761075,-500.0,0.00136986,120]
[357343233,1744008761110,-250.27,0.00136986,120]
[357343234,1744008761144,-500.0,0.00136986,120]
[357343235,1744008761178,-500.0,0.00136986,120]
[357343236,1744008761211,-500.0,0.00136986,120]
[357343237,1744008761243,-500.0,0.00136986,120]
[357343238,1744008761276,-500.0,0.00136986,120]
[357343239,1744008761311,-500.0,0.00136986,120]
[357343240,1744008761442,-500.0,0.00136986,120]
[357343241,1744008761478,-500.0,0.00136986,120]
[357343242,1744008761510,-500.0,0.00136986,120]
[357343243,1744008761544,-169.15990208,0.00136986,120]
[357343244,1744008761580,-500.0,0.00136986,120]
[357343245,1744008761614,-230.64616921,0.00136986,120]
[357343246,1744008761647,-521.37424492,0.00136986,120]
[357343247,1744008761680,-500.0,0.00136986,120]
[357343248,1744008761712,-500.0,0.00136986,120]
[357343249,1744008761744,-500.0,0.00136986,120]
[357343250,1744008761777,-500.0,0.00136986,120]
[357343251,1744008761811,-500.0,0.00136986,120]
[357343252,1744008761844,-500.0,0.00136986,120]
[357343253,1744008761877,-500.0,0.00136986,120]
[357343254,1744008761910,-500.0,0.00136986,120]
[357343255,1744008761943,-1000.0,0.00136986,120]
[357343256,1744008761976,-500.0,0.00136986,120]
[357343257,1744008762009,-500.0,0.00136986,120]
[357343258,1744008762042,-500.0,0.00136986,120]
[357343259,1744008762079,-369.79,0.00136986,120]
[357343260,1744008762119,-500.0,0.00136986,120]
[357343261,1744008762153,-500.0,0.00136986,120]
[357343262,1744008762187,-500.0,0.00136986,120]
[357343263,1744008762221,-500.0,0.00136986,120]
[357343264,1744008762254,-500.0,0.00136986,120]
[357343265,1744008762287,-500.0,0.00136986,120]
[357343266,1744008762321,-500.0,0.00136986,2]
[357343267,1744008762355,-500.0,0.00136986,120]
[357343268,1744008762386,-500.0,0.00136986,2]
[357343269,1744008762419,-649.18,0.00136986,120]
[357343270,1744008762453,-500.0,0.00136986,120]
[357343271,1744008762485,-500.0,0.00136986,120]
[357343272,1744008762518,-502.58,0.00136986,120]
[357343273,1744008762552,-402.71,0.00136986,120]
[357343274,1744008762584,-500.0,0.00136986,120]
[357343275,1744008762617,-500.0,0.00136986,120]
[357343276,1744008762650,-500.0,0.00136986,120]
[357343277,1744008762682,-222.36,0.00136986,120]
[357343278,1744008762715,-500.0,0.00136986,120]
[357343279,1744008762747,-500.0,0.00136986,120]
[357343280,1744008762781,-500.0,0.00136986,120]
[357343281,1744008762814,-500.0,0.00136986,120]
[357343282,1744008762847,-500.0,0.00136986,120]
[357343283,1744008762984,-500.0,0.00136986,120]
[357343284,1744008763022,-500.0,0.00136986,120]
[357343285,1744008763059,-500.0,0.00136986,120]
[357343286,1744008763093,-500.0,0.00136986,3]
[357343287,1744008763130,-500.0,0.00136986,120]
[357343288,1744008763166,-500.000001,0.00136986,3]
[357343289,1744008763204,-500.0,0.00136986,120]
[357343290,1744008763237,-500.0,0.00136986,120]
[357343291,1744008763270,-500.0,0.00136986,120]
[357343292,1744008763308,-500.0,0.00136986,120]
[357343293,1744008763341,-500.0,0.00136986,120]
[357343294,1744008763375,-500.0,0.00136986,120]
[357343295,1744008763409,-195.87606384,0.00136986,120]
[357343296,1744008763442,-500.0,0.00136986,120]
[357343297,1744008763475,-500.0,0.00136986,120]
[357343298,1744008763507,-500.0,0.00136986,120]
[357343299,1744008763541,-335.94,0.00136986,120]
[357343300,1744008763583,-500.0,0.00136986,120]
[357343301,1744008763618,-500.0,0.00136986,120]
[357343302,1744008763655,-576.25,0.00136986,120]
[357343303,1744008763690,-500.0,0.00136986,120]
[357343304,1744008763724,-2092.07,0.00136986,30]
[357343305,1744008763759,-500.0,0.00136986,120]
[357343306,1744008763794,-500.0,0.00136986,120]
[357343307,1744008763832,-500.0,0.00136986,120]
[357343308,1744008763866,-500.0,0.00136986,120]
[357343309,1744008763899,-500.0,0.00136986,60]
[357343310,1744008763933,-500.0,0.00136986,120]
[357343311,1744008763966,-600.98,0.00136986,60]
[357343312,1744008764002,-500.0,0.00136986,120]
[357343313,1744008764037,-500.0,0.00136986,120]
[357343314,1744008764074,-598.96873022,0.00136986,120]
[357343315,1744008764109,-500.0,0.00136986,120]
[357343316,1744008764148,-500.0,0.00136986,120]
[357343317,1744008764182,-500.0,0.00136986,120]
[357343318,1744008764219,-500.0,0.00136986,120]